bitfinex-derivatives/quotes_BTCF0:USTF0_20250630
["timestamp","ask_amount","ask_price","bid_price","bid_amount"]
[1751314191984,1.21883681,107690.0,107680.0,0.67653013]
[1751314192186,1.24943681,107690.0,107680.0,0.67653013]
[1751314192485,0.9331505,107690.0,107680.0,0.63944219]
[1751314192689,1.21883681,107690.0,107680.0,0.63944219]
[1751314193990,0.9025505,107690.0,107680.0,0.63944219]
[1751314194190,0.8712505,107690.0,107680.0,0.67014219]
[1751314195381,0.61758,107690.0,107680.0,0.67014219]
[1751314195577,0.7709705,107690.0,107680.0,0.70723013]
[1751314197893,0.7709705,107690.0,107680.0,0.34643013]
[1751314198092,0.7709705,107690.0,107680.0,0.70723013]
[1751314199197,0.8709705,107690.0,107680.0,0.70723013]
[1751314201099,0.92661446,107690.0,107680.0,0.67014219]
[1751314205808,1.24290077,107690.0,107680.0,0.57624219]
[1751314205995,1.33500077,107690.0,107680.0,0.54842233]
[1751314206301,1.33500077,107690.0,107680.0,0.58152233]
[1751314207103,1.33500077,107690.0,107680.0,0.61182233]
[1751314211107,1.27935681,107690.0,107680.0,0.63964219]
[1751314211808,1.20026353,107690.0,107680.0,0.63964219]
[1751314214211,1.20026353,107690.0,107680.0,0.63864219]
[1751314220310,0.9017705,107690.0,107680.0,0.63864219]
[1751314220612,1.13896353,107690.0,107680.0,0.63864219]
[1751314221414,0.9017705,107690.0,107680.0,0.63864219]
[1751314221615,1.13896353,107690.0,107680.0,0.87583522]
[1751314223015,1.13896353,107690.0,107680.0,0.90633522]
[1751314223516,1.13896353,107690.0,107680.0,0.66914219]
[1751314223815,1.13896353,107690.0,107680.0,0.90633522]
[1751314225320,1.13896353,107690.0,107680.0,0.66914219]
[1751314225512,1.13896353,107690.0,107680.0,0.90633522]
[1751314231629,1.13896353,107690.0,107680.0,0.66914219]
[1751314231924,1.13896353,107690.0,107680.0,0.63864219]
[1751314235828,1.38348353,107690.0,107680.0,0.63864219]
[1751314238229,1.38348353,107690.0,107680.0,0.66884219]
[1751314240041,1.1462905,107690.0,107680.0,0.66884219]
[1751314240329,1.38348353,107690.0,107680.0,0.90603522]
[1751314242124,1.38348353,107690.0,107680.0,0.66884219]
[1751314248140,1.38348353,107690.0,107680.0,0.30804219]
[1751314248339,1.38348353,107690.0,107680.0,0.66884219]
[1751314251143,1.43912749,107690.0,107680.0,0.64102233]
[1751314253238,1.20193446,107690.0,107680.0,0.64102233]
[1751314253439,1.40832749,107690.0,107680.0,0.87821536]
[1751314253640,1.17113446,107690.0,107680.0,0.87821536]
[1751314253837,1.40832749,107690.0,107680.0,0.87821536]
[1751314254144,1.40832749,107690.0,107680.0,0.64102233]
[1751314254338,1.44122749,107690.0,107680.0,0.64102233]
[1751314254943,1.44122749,107690.0,107680.0,0.87821536]
[1751314257549,1.40832749,107690.0,107680.0,0.87821536]
[1751314261253,1.35268353,107690.0,107680.0,0.66884219]
[1751314261545,1.35268353,107690.0,107680.0,0.90603522]
[1751314261751,1.1154905,107690.0,107680.0,0.90603522]
[1751314261941,1.35268353,107690.0,107680.0,0.90603522]
[1751314262348,1.38428353,107690.0,107680.0,0.66884219]
[1751314264754,1.1470905,107690.0,107680.0,0.66884219]
[1751314264954,1.38428353,107690.0,107680.0,0.66884219]
[1751314266252,1.13976353,107690.0,107680.0,0.66884219]
[1751314268953,1.13976353,107690.0,107680.0,0.63864219]
[1751314271652,0.9025705,107690.0,107680.0,0.63864219]
[1751314271851,1.13976353,107690.0,107680.0,0.63864219]
[1751314272953,0.9025705,107690.0,107680.0,0.63864219]
[1751314273150,1.13976353,107690.0,107680.0,0.63864219]
[1751314273358,1.38380353,107690.0,107680.0,0.63864219]
[1751314275860,1.38380353,107690.0,107680.0,0.61082233]
[1751314276156,1.38380353,107690.0,107680.0,0.63866379]
[1751314277562,1.38380353,107690.0,107680.0,0.61082233]
[1751314277858,1.38380353,107690.0,107680.0,0.63866437]
[1751314278361,1.1466105,107690.0,107680.0,0.63866437]
[1751314278557,1.38380353,107690.0,107680.0,0.9077574]
[1751314278858,1.38380353,107690.0,107680.0,0.87991536]
[1751314279060,1.38380353,107690.0,107680.0,0.90776235]
[1751314279259,1.13976353,107690.0,107680.0,0.90776235]
[1751314281563,0.9025705,107690.0,107680.0,0.90776235]
[1751314281762,1.13976353,107690.0,107680.0,0.90776235]
[1751314284056,1.13976353,107690.0,107680.0,0.67056932]
[1751314285564,0.9025705,107690.0,107680.0,0.67056932]
[1751314285765,1.13976353,107690.0,107680.0,0.67056932]
[1751314286461,1.13976353,107690.0,107680.0,0.63866932]
[1751314289569,0.9025705,107690.0,107680.0,0.63866932]
[1751314289868,1.13976353,107690.0,107680.0,0.63866932]
[1751314291168,1.19540749,107690.0,107680.0,0.61082233]
[1751314293577,0.95821446,107690.0,107680.0,0.61082233]
[1751314293977,1.19540749,107690.0,107680.0,0.61082233]
[1751314297576,0.95821446,107690.0,107680.0,0.25002233]
[1751314297774,1.19540749,107690.0,107680.0,0.61082233]
[1751314301187,1.13976353,107690.0,107680.0,0.63866932]
[1751314302278,1.37695656,107690.0,107680.0,0.38957562]
[1751314302478,0.85597656,107690.0,107680.0,0.57528332]
[1751314302774,1.27932353,107690.0,107680.0,0.81247635]
[1751314302978,1.27932353,107690.0,107680.0,0.64038332]
[1751314302979,1.37932353,107690.0,107680.0,0.64038332]
[1751314303286,1.37932353,107690.0,107680.0,0.67048332]
[1751314308587,1.19777446,107690.0,107680.0,0.67048332]
[1751314308790,1.43496749,107690.0,107680.0,0.67048332]
[1751314312097,1.37932353,107690.0,107680.0,0.67048332]
[1751314312795,1.1421305,107690.0,107680.0,0.67048332]
[1751314313095,1.37932353,107690.0,107680.0,0.67048332]
[1751314314395,1.43496749,107690.0,107680.0,0.67048332]
[1751314315198,1.37932353,107690.0,107680.0,0.67048332]
[1751314317293,0.24352,107690.0,107680.0,1.11702239]
[1751314317601,0.05564396,107700.0,107690.0,0.1856905]
[1751314317791,0.05564396,107700.0,107690.0,0.87668353]
[1751314317792,0.87363699,107700.0,107690.0,0.87668353]
[1751314318497,0.81799303,107700.0,107690.0,0.90453052]
[1751314318800,1.45955266,107710.0,107700.0,0.1856732]
[1751314318801,1.42051559,107710.0,107700.0,0.1856732]
[1751314318994,2.10127559,107710.0,107700.0,0.6394732]
[1751314322488,2.05485919,107710.0,107700.0,0.6394732]
[1751314323800,2.04154299,107710.0,107700.0,0.6394732]
[1751314325398,1.98589903,107710.0,107700.0,0.6394732]
[1751314326597,1.748706,107710.0,107700.0,0.6394732]
[1751314326802,1.98589903,107710.0,107700.0,0.6394732]
[1751314327394,1.748706,107710.0,107700.0,0.6394732]
[1751314327600,1.98589903,107710.0,107700.0,0.6394732]
[1751314328504,1.95279903,107710.0,107700.0,0.6394732]
[1751314330008,1.715606,107710.0,107700.0,0.6394732]
[1751314330303,1.95235903,107710.0,107700.0,0.6394732]
[1751314330503,1.715166,107710.0,107700.0,0.6394732]
[1751314330701,1.95235903,107710.0,107700.0,0.6394732]
[1751314336396,1.98405903,107710.0,107700.0,0.6091732]
[1751314336596,2.01535903,107710.0,107700.0,0.6091732]
[1751314340314,1.98405903,107710.0,107700.0,0.6091732]
[1751314341412,2.03970299,107710.0,107700.0,0.6091732]
[1751314342612,1.23694299,107710.0,107700.0,0.6091732]
[1751314344817,0.65662299,107710.0,107700.0,0.6091732]
[1751314345013,1.23638299,107710.0,107700.0,0.6091732]
[1751314348323,1.25498176,107710.0,107700.0,0.6091732]
[1751314351333,1.23647527,107710.0,107700.0,0.6091732]
[1751314352636,1.23647527,107710.0,107700.0,0.87746623]
[1751314352835,1.23647527,107710.0,107700.0,0.6402732]
[1751314357542,0.42462927,107710.0,107700.0,0.5779732]
[1751314357742,1.18972527,107710.0,107700.0,0.84556623]
[1751314357942,1.18972527,107710.0,107700.0,0.6386732]
[1751314360942,1.18972527,107710.0,107700.0,0.87586623]
[1751314361744,0.95253224,107710.0,107700.0,0.87586623]
[1751314361944,1.18972527,107710.0,107700.0,0.87586623]
[1751314362639,1.18972527,107710.0,107700.0,0.6386732]
[1751314362839,0.95253224,107710.0,107700.0,0.87586623]
[1751314363039,1.18972527,107710.0,107700.0,0.87586623]
[1751314363436,0.95253224,107710.0,107700.0,0.87586623]
[1751314363742,1.18972527,107710.0,107700.0,0.90371322]
[1751314365452,1.18972527,107710.0,107700.0,0.66652019]
[1751314365642,1.18972527,107710.0,107700.0,0.90371322]
[1751314366442,1.18972527,107710.0,107700.0,0.66652019]
[1751314366638,1.18972527,107710.0,107700.0,0.90371322]
[1751314367448,1.18972527,107710.0,107700.0,0.87586623]
[1751314369749,0.95253224,107710.0,107700.0,0.87586623]
[1751314369949,1.18972527,107710.0,107700.0,0.87586623]
[1751314372953,1.18972527,107710.0,107700.0,0.51506623]
[1751314373155,1.18972527,107710.0,107700.0,0.87586623]
[1751314377660,0.95253224,107710.0,107700.0,0.87586623]
[1751314377857,0.73453624,107710.0,107700.0,0.87586623]
[1751314378051,0.28778654,107720.0,107710.0,0.185656]
[1751314378252,1.15699789,107720.0,107710.0,0.48514903]
[1751314378559,0.97172927,107720.0,107710.0,0.51634903]
[1751314378949,1.15732807,107720.0,107710.0,0.51634903]
[1751314379359,0.57856807,107720.0,107710.0,0.51634903]
[1751314379554,1.15732807,107720.0,107710.0,0.51634903]
[1751314379760,1.15732807,107720.0,107710.0,0.87714903]
[1751314380060,1.15728807,107720.0,107710.0,0.87714903]
[1751314380262,0.57856807,107720.0,107710.0,0.87714903]
[1751314380461,1.15728807,107720.0,107710.0,0.87714903]
[1751314380664,0.57856807,107720.0,107710.0,0.87714903]
[1751314380855,1.15728807,107720.0,107710.0,0.87714903]
[1751314381658,0.39292927,107720.0,107710.0,0.87714903]
[1751314381859,0.97160927,107720.0,107710.0,0.87714903]
[1751314383056,0.57856807,107720.0,107710.0,0.639956]
[1751314383264,1.3944011,107720.0,107710.0,0.639956]
[1751314383465,1.4277011,107720.0,107710.0,0.639956]
[1751314386855,1.4277011,107720.0,107710.0,0.546456]
[1751314387055,1.4923011,107720.0,107710.0,0.546456]
[1751314391267,1.43656486,107720.0,107710.0,0.546456]
[1751314396265,1.43656486,107720.0,107710.0,0.579656]
[1751314397371,0.9621788,107720.0,107710.0,0.579656]
[1751314397670,1.43656486,107720.0,107710.0,0.612556]
[1751314401172,0.9621788,107720.0,107710.0,0.612556]
[1751314401564,1.43656486,107720.0,107710.0,0.612556]
[1751314401968,1.40436486,107720.0,107710.0,0.612556]
[1751314404277,0.9617788,107720.0,107710.0,0.612556]
[1751314404477,1.43616486,107720.0,107710.0,0.612556]
[1751314406177,1.43616486,107720.0,107710.0,0.251756]
[1751314406678,0.77614,107720.0,107710.0,0.251756]
[1751314406874,1.18632606,107720.0,107710.0,0.612556]
[1751314407174,1.37196486,107720.0,107710.0,0.64040299]
[1751314407380,1.37196486,107720.0,107710.0,0.612556]
[1751314409573,1.37196486,107720.0,107710.0,0.64040299]
[1751314410786,1.43426486,107720.0,107710.0,0.64040299]
[1751314411285,1.43426486,107720.0,107710.0,0.612556]
[1751314411583,1.43426486,107720.0,107710.0,0.64040299]
[1751314411974,1.43426486,107720.0,107710.0,0.546456]
[1751314413479,1.4900011,107720.0,107710.0,0.546456]
[1751314414178,1.67606486,107720.0,107710.0,0.546456]
[1751314414379,1.7318011,107720.0,107710.0,0.546456]
[1751314415375,1.7318011,107720.0,107710.0,0.57430299]
[1751314415575,1.7318011,107720.0,107710.0,0.546456]
[1751314415778,0.185656,107710.0,107700.0,0.28250823]
[1751314415982,0.79024206,107710.0,107700.0,0.25023645]
[1751314416179,0.85214206,107710.0,107700.0,0.25023645]
[1751314416378,0.85214206,107710.0,107700.0,0.21352029]
[1751314420087,0.61494903,107710.0,107700.0,0.24562029]
[1751314425489,0.85214206,107710.0,107700.0,0.24562029]
[1751314426190,1.43422903,107710.0,107700.0,0.24562029]
[1751314426391,1.40372903,107710.0,107700.0,0.27752029]
[1751314427190,1.64092206,107710.0,107700.0,0.27752029]
[1751314428292,1.67252206,107710.0,107700.0,0.27752029]
[1751314429787,1.67252206,107710.0,107700.0,0.2496733]
[1751314430392,1.67252206,107710.0,107700.0,0.27752029]
[1751314430593,1.67252206,107710.0,107700.0,0.2496733]
[1751314431292,1.7282583,107710.0,107700.0,0.2496733]
[1751314434094,1.25387224,107710.0,107700.0,0.2496733]
[1751314434395,1.67252206,107710.0,107700.0,0.2496733]
[1751314438799,1.7282583,107710.0,107700.0,0.1856733]
[1751314439001,0.1856733,107700.0,107690.0,0.82606126]
[1751314439190,0.99725239,107700.0,107690.0,0.37241886]
[1751314439395,1.02985239,107700.0,107690.0,0.02784699]
[1751314439596,0.1856905,107690.0,107680.0,0.73272362]
[1751314439791,1.36983656,107690.0,107680.0,0.73272362]
[1751314440601,1.36983656,107690.0,107680.0,0.76522362]
[1751314440802,1.37904038,107690.0,107680.0,0.35799762]
[1751314441099,1.37904038,107690.0,107680.0,0.02877562]
[1751314441299,1.77064038,107690.0,107680.0,0.00192863]
[1751314441603,1.77064038,107690.0,107680.0,0.02972952]
[1751314442006,1.82637662,107690.0,107680.0,0.00192863]
[1751314442399,1.77064038,107690.0,107680.0,0.02972952]
[1751314443209,1.77064038,107690.0,107680.0,0.00192863]
[1751314443718,1.77064038,107690.0,107680.0,0.18663633]
[1751314445806,1.14609432,107690.0,107680.0,0.25033633]
[1751314446011,1.38328735,107690.0,107680.0,0.28033633]
[1751314446716,1.62048038,107690.0,107680.0,0.28033633]
[1751314447508,1.38328735,107690.0,107680.0,0.28033633]
[1751314447705,1.62048038,107690.0,107680.0,0.28033633]
[1751314447910,1.46240728,107690.0,107680.0,0.25033633]
[1751314448116,1.85360728,107690.0,107680.0,0.03282863]
[1751314448419,1.85360728,107690.0,107680.0,0.00092863]
[1751314449217,2.16992024,107690.0,107680.0,0.00092863]
[1751314449409,0.285725,107670.0,107660.0,0.35399866]
[1751314449610,1.53987796,107670.0,107660.0,0.35399866]
[1751314449910,1.57027796,107670.0,107660.0,0.35399866]
[1751314450909,1.57027796,107670.0,107660.0,0.35499866]
[1751314452520,1.57027796,107670.0,107660.0,0.32439866]
[1751314453723,1.57027796,107670.0,107660.0,0.35499866]
[1751314454732,1.60197796,107670.0,107660.0,0.32439866]
[1751314455818,1.57027796,107670.0,107660.0,0.32439866]
[1751314456219,1.57027796,107670.0,107660.0,0.35499866]
[1751314468727,0.63243796,107670.0,107660.0,0.35499866]
[1751314468927,1.42027796,107670.0,107660.0,0.71579866]
[1751314469128,0.60203796,107670.0,107660.0,0.74359955]
[1751314469331,1.42023796,107670.0,107660.0,0.74359955]
[1751314471037,1.42023796,107670.0,107660.0,0.71579866]
[1751314472836,1.42023796,107670.0,107660.0,0.001]
[1751314473042,1.8683742,107670.0,107660.0,0.001]
[1751314473335,1.9318742,107670.0,107660.0,0.001]
[1751314473543,0.1857768,107640.0,107630.0,0.70429228]
[1751314473846,1.17988268,107640.0,107630.0,1.12424913]
[1751314474145,1.07988268,107640.0,107630.0,1.10978734]
[1751314474338,1.17988268,107640.0,107630.0,1.10978734]
[1751314474640,0.86356972,107640.0,107630.0,1.10978734]
[1751314474846,1.17988268,107640.0,107630.0,1.11578734]
[1751314475231,1.17988268,107640.0,107630.0,1.19092005]
[1751314477340,0.86356972,107640.0,107630.0,1.19092005]
[1751314477643,1.07988268,107640.0,107630.0,1.19092005]
[1751314477842,0.57779292,107640.0,107630.0,1.20744823]
[1751314478046,0.57779292,107640.0,107630.0,1.22191269]
[1751314480644,0.57779292,107640.0,107630.0,1.22340094]
[1751314480844,0.57779292,107640.0,107630.0,1.20893648]
[1751314481345,0.57779292,107640.0,107630.0,1.24595317]
[1751314482051,0.76356972,107640.0,107630.0,1.24595317]
[1751314482437,1.17988268,107640.0,107630.0,1.24595317]
[1751314482842,1.17988268,107640.0,107630.0,1.23995317]
[1751314483043,1.17988268,107640.0,107630.0,1.24495317]
[1751314485049,1.17988268,107640.0,107630.0,1.25947573]
[1751314486153,1.17988268,107640.0,107630.0,0.90947573]
[1751314486553,1.21168268,107640.0,107630.0,0.87797573]
[1751314486951,1.24358268,107640.0,107630.0,0.87797573]
[1751314488555,1.21168268,107640.0,107630.0,0.87797573]
[1751314489356,1.21168268,107640.0,107630.0,0.82643648]
[1751314491452,1.21168268,107640.0,107630.0,0.85693648]
[1751314493660,1.21168268,107640.0,107630.0,0.82913559]
[1751314499370,1.17988268,107640.0,107630.0,0.82913559]
[1751314499566,1.17988268,107640.0,107630.0,0.85693648]
[1751314500263,0.99410588,107640.0,107630.0,0.85693648]
[1751314500470,0.00099292,107640.0,107630.0,1.17324944]
[1751314500670,0.00099292,107640.0,107630.0,1.53324944]
[1751314500874,0.00099292,107640.0,107630.0,1.36777201]
[1751314501073,1.0673079,107660.0,107630.0,1.53057601]
[1751314501262,1.0886721,107660.0,107650.0,0.5465595]
[1751314501468,1.72393487,107660.0,107650.0,0.54755242]
[1751314501772,1.72393487,107660.0,107650.0,0.63885242]
[1751314502275,0.95674277,107660.0,107650.0,0.63885242]
[1751314502464,1.53878277,107660.0,107650.0,0.63885242]
[1751314502666,0.95674277,107660.0,107650.0,0.63885242]
[1751314502872,1.44054277,107660.0,107650.0,0.63885242]
[1751314503479,1.44050277,107660.0,107650.0,1.00065242]
[1751314503671,1.44042277,107660.0,107650.0,1.31696538]
[1751314503864,1.44042277,107660.0,107650.0,1.00065242]
[1751314504273,0.85674277,107660.0,107650.0,1.01517309]
[1751314504480,1.38541997,107660.0,107650.0,1.01517309]
[1751314504678,0.92398466,107670.0,107660.0,0.1857422]
[1751314504679,0.0556828,107670.0,107660.0,0.1857422]
[1751314504884,0.1556828,107670.0,107660.0,0.89345516]
[1751314505071,0.7412428,107670.0,107660.0,0.61013866]
[1751314506576,1.05755576,107670.0,107660.0,0.61013866]
[1751314506775,0.7412428,107670.0,107660.0,0.61013866]
[1751314506976,1.05755576,107670.0,107660.0,0.61013866]
[1751314507577,1.24328076,107670.0,107660.0,0.61013866]
[1751314507782,1.05755576,107670.0,107660.0,0.61013866]
[1751314508166,0.7412428,107670.0,107660.0,0.61013866]
[1751314508370,1.05755576,107670.0,107660.0,0.61013866]
[1751314508568,1.08945576,107670.0,107660.0,0.61013866]
[1751314509473,1.08945576,107670.0,107660.0,0.57953866]
[1751314509773,0.7731428,107670.0,107660.0,0.57953866]
[1751314509967,1.08945576,107670.0,107660.0,0.57953866]
[1751314510170,1.08945576,107670.0,107660.0,0.61163866]
[1751314511372,0.7731428,107670.0,107660.0,0.61163866]
[1751314511676,1.05755576,107670.0,107660.0,0.61163866]
[1751314511978,1.00187296,107670.0,107660.0,0.61163866]
[1751314512178,1.05755576,107670.0,107660.0,0.61163866]
[1751314512383,1.05755576,107670.0,107660.0,0.57953866]
[1751314512678,1.05755576,107670.0,107660.0,0.21873866]
[1751314512679,1.27488076,107670.0,107660.0,0.21873866]
[1751314512880,1.34008076,107670.0,107660.0,0.21873866]
[1751314513373,1.34008076,107670.0,107660.0,0.18623866]
[1751314513583,1.28439796,107670.0,107660.0,0.18623866]
[1751314513777,1.3400482,107670.0,107660.0,0.18623866]
[1751314517282,1.28439796,107670.0,107660.0,0.18623866]
[1751314517482,1.28439796,107670.0,107660.0,0.00049646]
[1751314517781,1.38458749,107670.0,107660.0,0.00049646]
[1751314518483,1.38458749,107670.0,107660.0,0.18623866]
[1751314519585,1.38458749,107670.0,107660.0,0.21482396]
[1751314519780,1.38458749,107670.0,107660.0,0.02908176]
[1751314520585,1.38458749,107670.0,107660.0,0.21482406]
[1751314522984,1.38458749,107670.0,107660.0,0.02908176]
[1751314523488,1.38458749,107670.0,107660.0,0.21482396]
[1751314523985,1.53159796,107670.0,107660.0,0.21482396]
[1751314524181,1.215285,107670.0,107660.0,0.21482396]
[1751314524387,1.53159796,107670.0,107660.0,0.21482396]
[1751314525386,1.215285,107670.0,107660.0,0.21482396]
[1751314525587,1.53159796,107670.0,107660.0,0.21482396]
[1751314529489,1.53159796,107670.0,107660.0,0.24260183]
[1751314529882,1.215285,107670.0,107660.0,0.24260183]
[1751314530084,1.53159796,107670.0,107660.0,0.24260183]
[1751314530885,1.215285,107670.0,107660.0,0.24260183]
[1751314531087,1.53159796,107670.0,107660.0,0.24260183]
[1751314532791,0.69883796,107670.0,107660.0,0.24260183]
[1751314533092,1.53139796,107670.0,107660.0,0.24260183]
[1751314534294,1.53139796,107670.0,107660.0,0.27480183]
[1751314534594,1.53139796,107670.0,107660.0,0.27529829]
[1751314538393,1.53139796,107670.0,107660.0,0.30679829]
[1751314538893,1.215085,107670.0,107660.0,0.30679829]
[1751314539199,1.53139796,107670.0,107660.0,0.30679829]
[1751314540398,1.49829796,107670.0,107660.0,0.30679829]
[1751314541297,1.46619796,107670.0,107660.0,0.30679829]
[1751314543494,1.46619796,107670.0,107660.0,0.33869829]
[1751314547291,1.52193441,107670.0,107660.0,0.28233512]
[1751314547490,0.47204941,107670.0,107660.0,0.28233512]
[1751314547687,0.74213645,107670.0,107660.0,0.65765561]
[1751314547999,0.92786145,107670.0,107660.0,0.65765561]
[1751314548298,1.18843796,107670.0,107660.0,0.65765561]
[1751314548904,1.24417441,107670.0,107660.0,0.65765561]
[1751314549203,1.24417441,107670.0,107660.0,0.65865561]
[1751314549393,0.1,107670.0,107660.0,0.65865561]
[1751314549599,0.08453165,107690.0,107680.0,0.1857078]
[1751314549904,0.07524273,107690.0,107680.0,0.86282076]
[1751314550200,0.07524273,107690.0,107680.0,0.97323461]
[1751314550201,0.64304924,107690.0,107680.0,0.97323461]
[1751314550404,0.64304924,107690.0,107680.0,0.95871722]
[1751314550800,0.64304924,107690.0,107680.0,0.64240426]
[1751314551003,0.64304924,107690.0,107680.0,0.95871722]
[1751314551205,0.05672924,107690.0,107680.0,0.95871722]
[1751314551406,0.64308924,107690.0,107680.0,0.95871722]
[1751314551604,0.58736,107690.0,107680.0,0.95871722]
[1751314551903,0.001,107690.0,107680.0,1.26871722]
[1751314552204,0.001,107690.0,107680.0,0.95871722]
[1751314552405,0.001,107690.0,107680.0,0.64240426]
[1751314552591,0.001,107690.0,107680.0,0.95871722]
[1751314552797,0.001,107690.0,107680.0,0.96171722]
[1751314552998,0.05672924,107690.0,107680.0,0.96171722]
[1751314553802,0.05672924,107690.0,107680.0,1.32251722]
[1751314554402,0.05672924,107690.0,107680.0,1.00620426]
[1751314554703,0.05672924,107690.0,107680.0,1.32251722]
[1751314554906,0.001,107690.0,107680.0,1.32251722]
[1751314558214,0.001,107690.0,107680.0,1.00620426]
[1751314558618,0.001,107690.0,107680.0,1.32251722]
[1751314559702,0.001,107690.0,107680.0,1.00620426]
[1751314561314,0.001,107690.0,107680.0,1.32251722]
[1751314561817,0.001,107690.0,107680.0,1.00620426]
[1751314562410,0.41731296,107690.0,107680.0,1.00620426]
[1751314562621,0.44961296,107690.0,107680.0,1.00620426]
[1751314562817,0.63530346,107690.0,107680.0,1.00620426]
[1751314563117,0.44961296,107690.0,107680.0,1.00620426]
[1751314563317,0.1333,107690.0,107680.0,1.00620426]
[1751314563515,0.44961296,107690.0,107680.0,1.00620426]
[1751314563909,0.1333,107690.0,107680.0,1.00620426]
[1751314564112,0.34961296,107690.0,107680.0,1.00620426]
[1751314564919,0.0333,107690.0,107680.0,1.00620426]
[1751314565419,0.34961296,107690.0,107680.0,1.00620426]
[1751314567922,0.34961296,107690.0,107680.0,1.00670072]
[1751314569021,0.53530346,107690.0,107680.0,1.00670072]
[1751314569325,0.34961296,107690.0,107680.0,1.00670072]
[1751314569525,0.0333,107690.0,107680.0,1.00670072]
[1751314569719,0.34961296,107690.0,107680.0,1.00670072]
[1751314570823,0.53530346,107690.0,107680.0,1.00670072]
[1751314571023,0.0333,107690.0,107680.0,1.00670072]
[1751314571224,0.34961296,107690.0,107680.0,1.00670072]
[1751314572321,0.53530346,107690.0,107680.0,1.00670072]
[1751314572625,0.63530346,107690.0,107680.0,1.00670072]
[1751314573024,0.44961296,107690.0,107680.0,1.00670072]
[1751314573318,0.63530346,107690.0,107680.0,0.61290072]
[1751314573622,0.66740346,107690.0,107680.0,0.61290072]
[1751314574425,0.48171296,107690.0,107680.0,0.61290072]
[1751314574721,0.66740346,107690.0,107680.0,0.61290072]
[1751314575723,0.63530346,107690.0,107680.0,0.61290072]
[1751314577026,0.44961296,107690.0,107680.0,0.61290072]
[1751314577219,0.63530346,107690.0,107680.0,0.61290072]
[1751314577420,0.63530346,107690.0,107680.0,0.64540072]
[1751314578324,0.63530346,107690.0,107680.0,0.67318718]
[1751314579326,0.63530346,107690.0,107680.0,0.68770367]
[1751314580627,0.63530346,107690.0,107680.0,0.67318718]
[1751314581128,0.63530346,107690.0,107680.0,0.68770387]
[1751314583128,0.44961296,107690.0,107680.0,0.65991741]
[1751314583525,0.34961296,107690.0,107680.0,0.68770387]
[1751314583726,0.0333,107690.0,107680.0,0.68770387]
[1751314587334,0.001,107690.0,107680.0,0.68770387]
[1751314592037,0.31731296,107690.0,107680.0,0.68770387]
[1751314592744,0.60300346,107690.0,107680.0,0.68770387]
[1751314592943,0.41731296,107690.0,107680.0,0.68770387]
[1751314593142,0.41731296,107690.0,107680.0,0.72472056]
[1751314593643,0.41731296,107690.0,107680.0,0.71020387]
[1751314593838,0.33820626,107690.0,107680.0,0.71020387]
[1751314594342,0.101,107690.0,107680.0,0.94741013]
[1751314594544,0.23820626,107690.0,107680.0,0.94741013]
[1751314597743,0.001,107690.0,107680.0,0.71020387]
[1751314598243,0.001,107690.0,107680.0,0.72472004]
[1751314600246,0.48696524,107700.0,107690.0,0.1856906]
[1751314600435,1.17144524,107700.0,107690.0,0.63728492]
[1751314600839,1.17144524,107700.0,107690.0,0.63778138]
[1751314601136,1.17144524,107700.0,107690.0,0.6851788]
[1751314601137,1.48767723,107700.0,107690.0,0.6851788]
[1751314601646,1.48767723,107700.0,107690.0,0.71297666]
[1751314602146,1.48767723,107700.0,107690.0,0.6851788]
[1751314602641,1.48767723,107700.0,107690.0,0.6861788]
[1751314603446,1.43194799,107700.0,107690.0,0.6861788]
[1751314603647,1.48767723,107700.0,107690.0,0.6861788]
[1751314604247,1.43194799,107700.0,107690.0,0.6861788]
[1751314604945,1.48767723,107700.0,107690.0,0.6861788]
[1751314605338,1.51977723,107700.0,107690.0,0.6861788]
[1751314606850,1.46404799,107700.0,107690.0,0.6861788]
[1751314607343,1.51977723,107700.0,107690.0,0.6861788]
[1751314607751,1.46404799,107700.0,107690.0,0.6861788]
[1751314607948,1.46404799,107700.0,107690.0,0.6236788]
[1751314608247,1.52964799,107700.0,107690.0,0.6236788]
[1751314608851,1.58537723,107700.0,107690.0,0.6236788]
[1751314609051,1.58537723,107700.0,107690.0,0.6555788]
[1751314610752,1.52964799,107700.0,107690.0,0.6555788]
[1751314612355,1.46404799,107700.0,107690.0,0.6555788]
[1751314613055,1.147816,107700.0,107690.0,0.6555788]
[1751314613246,1.46404799,107700.0,107690.0,0.6555788]
[1751314613857,1.46404799,107700.0,107690.0,0.6856788]
[1751314614053,1.147816,107700.0,107690.0,0.6856788]
[1751314614357,1.46404799,107700.0,107690.0,0.6856788]
[1751314615360,1.21780799,107700.0,107690.0,0.6856788]
[1751314615658,1.21780799,107700.0,107690.0,0.71347666]
[1751314617760,1.37592646,107700.0,107690.0,0.71347666]
[1751314618262,0.901576,107700.0,107690.0,0.71347666]
[1751314618568,1.37592646,107700.0,107690.0,0.71347666]
[1751314622260,0.901576,107700.0,107690.0,0.730572]
[1751314622467,1.37592646,107700.0,107690.0,0.730572]
[1751314622667,0.901576,107700.0,107690.0,0.730572]
[1751314622869,1.37592646,107700.0,107690.0,0.700472]
[1751314623069,1.40762646,107700.0,107690.0,0.700472]
[1751314623268,0.933276,107700.0,107690.0,0.700472]
[1751314623470,1.40762646,107700.0,107690.0,0.700472]
[1751314624669,1.40762646,107700.0,107690.0,0.668572]
[1751314624864,1.64480169,107700.0,107690.0,0.668572]
[1751314625369,1.40762646,107700.0,107690.0,0.668572]
[1751314626465,1.40762646,107700.0,107690.0,0.1220814]
[1751314626466,1.76842646,107700.0,107690.0,0.1220814]
[1751314626667,1.8241557,107700.0,107690.0,0.27997414]
[1751314633572,2.09373093,107700.0,107690.0,0.27997414]
[1751314634682,2.09373093,107700.0,107690.0,0.09428354]
[1751314634982,2.09373093,107700.0,107690.0,0.27997414]
[1751314635679,1.8565557,107700.0,107690.0,0.27997414]
[1751314637183,1.8565557,107700.0,107690.0,0.09428354]
[1751314637779,1.8565557,107700.0,107690.0,0.27997414]
[1751314638880,1.8565557,107700.0,107690.0,0.2628788]
[1751314639081,1.8565557,107700.0,107690.0,0.0771882]
[1751314639284,1.8565557,107700.0,107690.0,0.2628788]
[1751314639779,1.8565557,107700.0,107690.0,0.0771882]
[1751314640381,1.8565557,107700.0,107690.0,0.2628788]
[1751314641887,1.38220524,107700.0,107690.0,0.2628788]
[1751314642182,1.8565557,107700.0,107690.0,0.2628788]
[1751314644183,1.38220524,107700.0,107690.0,0.2628788]
[1751314644383,1.8565557,107700.0,107690.0,0.2628788]
[1751314644584,1.8565557,107700.0,107690.0,0.2929788]
[1751314644987,1.31550524,107700.0,107690.0,0.2929788]
[1751314645187,1.7898557,107700.0,107690.0,0.3575788]
[1751314646184,1.7898557,107700.0,107690.0,0.28238352]
[1751314646486,0.73430524,107700.0,107690.0,0.28238352]
[1751314646676,1.55870524,107700.0,107690.0,0.28238352]
[1751314646879,2.0330557,107700.0,107690.0,0.28238352]
[1751314648390,2.0009557,107700.0,107690.0,0.28238352]
[1751314649591,1.6424757,107700.0,107690.0,0.28238352]
[1751314650591,1.16812524,107700.0,107690.0,0.28238352]